fUSD/lending_fUSD_20240115
["ID","MTS","AMOUNT","RATE_DAILY","PERIOD"]
[311681954,1705326643483,-1500.0,0.00029573,2]
[311681955,1705326643493,-150.0,0.00029587,2]
[311681956,1705326643502,-150.0,0.00029587,2]
[311681957,1705326643512,-211.18396178,0.00029589,5]
[311681958,1705326643522,-277.49570885,0.00029597,2]
[311681959,1705326643533,-150.0,0.00029597,2]
[311681960,1705326643543,-494.02868803,0.00029599,2]
[311681961,1705326643553,-171.68272656,0.00029599,2]
[311681962,1705326643563,-287.62896019,0.00029599,2]
[311681963,1705326643572,-150.0,0.00029603,2]
[311681964,1705326643581,-150.0,0.00029605,2]
[311681965,1705326643590,-1500.0,0.00029608,2]
[311681966,1705326643599,-150.0,0.0002962,2]
[311681967,1705326643608,-150.0,0.0002962,2]
[311681968,1705326643617,-150.0,0.00029621,2]
[311681969,1705326643626,-150.0,0.00029623,2]
[311681970,1705326643635,-150.0,0.0002963,2]
[311681971,1705326643645,-150.0,0.0002964,2]
[311681972,1705326643654,-300.0,0.00029648,2]
[311681973,1705326643663,-150.0,0.00029649,2]
[311681974,1705326643672,-150.0,0.0002965,2]
[311681975,1705326643682,-150.0,0.00029656,2]
[311681976,1705326643691,-150.0,0.00029661,2]
[311681977,1705326643701,-150.0,0.00029667,2]
[311681978,1705326643710,-150.0,0.00029669,2]
[311681979,1705326643720,-150.0,0.00029669,2]
[311681980,1705326643729,-150.0,0.00029671,2]
[311681981,1705326643738,-150.0,0.00029672,2]
[311681982,1705326643747,-151.0,0.00029677,2]
[311681983,1705326643757,-150.0,0.00029686,2]
[311681984,1705326643766,-150.0,0.00029689,2]
[311681985,1705326643775,-1500.0,0.00029695,2]
[311681986,1705326643784,-1972.63121538,0.00029697,2]
[311681987,1705326643793,-566.59727256,0.00029698,2]
[311681988,1705326643802,-1042.99625133,0.00029698,2]
[311681989,1705326643811,-300.0,0.00029698,2]
[311681990,1705326643821,-3524.3777206,0.00029699,2]
[311681991,1705326643830,-33896.15762346,0.000297,2]
[311681992,1705326643839,-500.0,0.000297,2]
[311681993,1705326643847,-569.4432,0.000297,3]
[311681994,1705326643857,-1000.0,0.000297,2]
[311681995,1705326643866,-245000.0,0.000297,2]
[311681996,1705326643875,-151.0,0.000297,7]
[311681997,1705326643884,-151.0,0.000297,7]
[311681998,1705326643894,-138389.2252,0.000297,2]
[311681999,1705326643906,-242.058528,0.000297,7]
[311682000,1705326643915,-242.058528,0.000297,7]
[311682001,1705326643925,-151.0,0.000297,7]
[311682002,1705326643935,-151.0,0.000297,7]
[311682003,1705326643944,-151.0,0.000297,7]
[311682004,1705326643954,-153.223504,0.000297,7]
[311682005,1705326643963,-151.0,0.000297,7]
[311682006,1705326643972,-151.0,0.000297,7]
[311682007,1705326643982,-151.0,0.000297,7]
[311682008,1705326643992,-151.0,0.000297,7]
[311682009,1705326644001,-151.0,0.000297,7]
[311682010,1705326644011,-151.0,0.000297,7]
[311682011,1705326644021,-157.046694,0.000297,7]
[311682012,1705326644030,-169.580565,0.000297,7]
[311682013,1705326644040,-169.580565,0.000297,7]
[311682014,1705326644051,-151.0,0.000297,7]
[311682015,1705326644062,-151.0,0.000297,7]
[311682016,1705326644071,-151.0,0.000297,7]
[311682017,1705326644081,-151.0,0.000297,7]
[311682018,1705326644090,-151.0,0.000297,7]
[311682019,1705326644099,-151.0,0.000297,7]
[311682020,1705326644110,-151.0,0.000297,7]
[311682021,1705326644118,-151.0,0.000297,7]
[311682022,1705326644128,-151.0,0.000297,7]
[311682023,1705326644138,-154.249838,0.000297,7]
[311682024,1705326644147,-151.0,0.000297,7]
[311682025,1705326644156,-151.0,0.000297,7]
[311682026,1705326644165,-151.0,0.000297,7]
[311682027,1705326644174,-151.0,0.000297,7]
[311682028,1705326644184,-188.545329,0.000297,7]
[311682029,1705326644193,-151.0,0.000297,7]
[311682030,1705326644202,-12900.0,0.000297,10]
[311682031,1705326644211,-898.025245,0.000297,7]
[311682032,1705326644220,-898.025245,0.000297,7]
[311682033,1705326644229,-152.077337,0.000297,7]
[311682034,1705326644238,-152.077337,0.000297,7]
[311682035,1705326644248,-151.0,0.000297,7]
[311682036,1705326644257,-192.105174,0.000297,7]
[311682037,1705326644266,-192.105174,0.000297,7]
[311682038,1705326644275,-394.216124,0.000297,7]
[311682039,1705326644284,-394.216124,0.000297,7]
[311682040,1705326644293,-183.42792,0.000297,7]
[311682041,1705326644302,-204.960158,0.000297,7]
[311682042,1705326644311,-204.960158,0.000297,7]
[311682043,1705326644321,-150.0,0.00029704,2]
[311682044,1705326644330,-150.0,0.00029708,2]
[311682045,1705326644349,-150.0,0.0002971,2]
[311682046,1705326644367,-150.0,0.00029713,2]
[311682047,1705326644387,-920.34,0.00029716,2]
[311682048,1705326644406,-150.0,0.00029731,2]
[311682049,1705326644422,-150.0,0.00029732,2]
[311682050,1705326644441,-150.0,0.00029738,2]
[311682051,1705326644460,-150.0,0.00029738,2]
[311682052,1705326644481,-150.0,0.00029739,2]
[311682053,1705326644498,-151.70631307,0.00029748,2]
[311682054,1705326644516,-227.70232845,0.00029749,2]
[311682055,1705326644536,-150.0,0.00029755,2]
[311682056,1705326644550,-150.0,0.00029759,2]
[311682057,1705326644568,-800.0,0.00029759,5]
[311682058,1705326644580,-800.0,0.00029759,5]
[311682059,1705326644597,-800.0,0.0002976,5]
[311682060,1705326644611,-200.0,0.0002976,3]
[311682061,1705326644626,-800.0,0.0002976,5]
[311682062,1705326644641,-150.0,0.0002976,2]
[311682063,1705326644656,-500.0,0.0002976,2]
[311682064,1705326644671,-200.0,0.0002976,3]
[311682065,1705326644686,-800.0,0.0002976,5]
[311682066,1705326644700,-800.0,0.0002976,5]
[311682067,1705326644721,-800.0,0.0002976,5]
[311682068,1705326644736,-800.0,0.0002976,5]
[311682069,1705326644751,-150.0,0.00029766,2]
[311682070,1705326644766,-1500.0,0.00029768,2]
[311682071,1705326644782,-150.0,0.00029777,2]
[311682072,1705326644796,-150.0,0.00029781,2]
[311682073,1705326644813,-150.0,0.00029786,2]
[311682074,1705326644828,-201.0,0.00029797,14]
[311682075,1705326644843,-2303.252346,0.00029798,2]
[311682076,1705326644859,-155.15960418,0.00029798,2]
[311682077,1705326644875,-200.0,0.00029798,2]
[311682078,1705326644890,-514.86735764,0.00029798,2]
[311682079,1705326644905,-150.0,0.00029798,2]
[311682080,1705326644921,-242.058528,0.00029798,7]
[311682081,1705326644936,-242.058528,0.00029798,7]
[311682082,1705326644951,-151.0,0.00029798,7]
[311682083,1705326644966,-151.0,0.00029798,7]
[311682084,1705326644981,-151.0,0.00029798,7]
[311682085,1705326644995,-221.400672,0.00029799,7]
[311682086,1705326645011,-151.834678,0.00029799,7]
[311682087,1705326645027,-453.70899233,0.00029799,2]
[311682088,1705326645042,-842.13097267,0.00029799,2]
[311682089,1705326645059,-236.14012151,0.00029799,2]
[311682090,1705326645074,-249.52239637,0.00029799,2]
[311682091,1705326645090,-204.25460702,0.00029799,2]
[311682092,1705326645106,-155.71000088,0.00029799,2]
[311682093,1705326645121,-400.0,0.00029799,2]
[311682094,1705326645136,-201.68729418,0.00029799,2]
[311682095,1705326645152,-155.28630547,0.00029799,2]
[311682096,1705326645169,-39825.7225,0.000298,2]
[311682097,1705326645184,-100000.0,0.000298,2]
[311682098,1705326645201,-175.39581942,0.000298,2]
[311682099,1705326645216,-943.76,0.000298,2]
[311682100,1705326645231,-16100.0,0.000298,10]
[311682101,1705326645246,-2594.38329,0.00029803,2]
[311682102,1705326645262,-312.25816395,0.00029803,2]
[311682103,1705326645277,-233.62449319,0.00029803,2]
[311682104,1705326645292,-155.09781845,0.00029803,2]
[311682105,1705326645308,-155.48396173,0.00029803,2]
[311682106,1705326645322,-155.4249365,0.00029803,2]
[311682107,1705326645338,-18333.19865723,0.00029803,2]
[311682108,1705326645353,-150.0,0.00029803,2]
[311682109,1705326645368,-200.0,0.00029803,2]
[311682110,1705326645382,-178.0,0.00029803,2]
[311682111,1705326645397,-246.33521087,0.00029804,2]
[311682112,1705326645412,-255.0640545,0.00029804,2]
[311682113,1705326645427,-59775.96639475,0.00029804,2]
[311682114,1705326645442,-151.0,0.00029804,7]
[311682115,1705326645459,-151.0,0.00029804,7]
[311682116,1705326645478,-151.0,0.00029804,7]
[311682117,1705326645496,-151.0,0.00029804,7]
[311682118,1705326645514,-151.0,0.00029804,7]
[311682119,1705326645532,-151.0,0.00029804,7]
[311682120,1705326645549,-151.0,0.00029804,7]
[311682121,1705326645567,-151.0,0.00029804,7]
[311682122,1705326645584,-151.0,0.00029804,7]
[311682123,1705326645601,-898.025245,0.00029804,7]
[311682124,1705326645617,-898.025245,0.00029804,7]
[311682125,1705326645634,-152.077337,0.00029804,7]
[311682126,1705326645649,-152.077337,0.00029804,7]
[311682127,1705326645664,-192.105174,0.00029804,7]
[311682128,1705326645679,-192.105174,0.00029804,7]
[311682129,1705326645696,-394.216124,0.00029804,7]
[311682130,1705326645711,-394.216124,0.00029804,7]
[311682133,1705326645726,-204.960158,0.00029804,7]
[311682134,1705326645741,-204.960158,0.00029804,7]
[311682135,1705326645758,-150.0,0.00029807,2]
[311682138,1705326645773,-150.0,0.00029812,2]
[311682140,1705326645788,-150.0,0.00029821,2]
[311682143,1705326645803,-242.058528,0.00029822,7]
[311682145,1705326645819,-242.058528,0.00029822,7]
[311682148,1705326645834,-151.0,0.00029822,7]
[311682151,1705326645849,-212.165186,0.00029822,7]
[311682153,1705326645864,-151.0,0.00029822,7]
[311682155,1705326645879,-151.0,0.00029822,7]
[311682156,1705326645895,-151.0,0.00029822,7]
[311682157,1705326645909,-151.0,0.00029822,7]
[311682158,1705326645925,-151.0,0.00029822,7]
[311682159,1705326645941,-151.0,0.00029822,7]
[311682161,1705326645957,-151.0,0.00029822,7]
[311682163,1705326645974,-169.580565,0.00029822,7]
[311682164,1705326645989,-169.580565,0.00029822,7]
[311682165,1705326646005,-300.207021,0.00029822,7]
[311682166,1705326646021,-151.0,0.00029822,7]
[311682167,1705326646036,-151.0,0.00029822,7]
[311682168,1705326646051,-151.0,0.00029822,7]
[311682169,1705326646068,-151.0,0.00029822,7]
[311682170,1705326646084,-200000.0,0.00029822,7]
[311682171,1705326646099,-150.0,0.00029823,2]
[311682172,1705326646110,-150.0,0.00029833,2]
[311682173,1705326646120,-150.0,0.00029838,2]
[311682174,1705326646129,-150.0,0.00029839,2]
[311682175,1705326646138,-150.0,0.00029841,2]
[311682176,1705326646147,-1500.0,0.00029841,2]
[311682177,1705326646156,-1500.0,0.00029842,2]
[311682178,1705326646165,-150.0,0.0002985,2]
[311682182,1705326646468,-1000.0,0.0002985,2]
[311682183,1705326646548,-536.3386,0.0002985,2]
[311682184,1705326646590,-500.0,0.0002985,2]
[311682185,1705326646600,-500.0,0.0002985,2]
[311682186,1705326646610,-500.0,0.0002985,2]
[311682187,1705326646619,-500.0,0.0002985,2]
[311682188,1705326646628,-500.0,0.0002985,2]
[311682189,1705326646637,-500.0,0.0002985,2]
[311682190,1705326646647,-500.0,0.0002985,2]
[311682191,1705326646656,-500.0,0.0002985,2]
[311682192,1705326646665,-500.0,0.0002985,2]
[311682193,1705326646674,-500.0,0.0002985,2]
[311682194,1705326646683,-500.0,0.0002985,2]
[311682195,1705326646692,-500.0,0.0002985,2]
[311682196,1705326646701,-500.0,0.0002985,2]
[311682197,1705326646710,-500.0,0.0002985,2]
[311682198,1705326646719,-500.0,0.0002985,2]
[311682199,1705326646732,-500.0,0.0002985,2]
[311682200,1705326646741,-500.0,0.0002985,2]
[311682201,1705326646750,-500.0,0.0002985,2]
[311682202,1705326646759,-500.0,0.0002985,2]
[311682203,1705326646768,-643.2227,0.0002985,2]
[311682204,1705326646777,-277.49570885,0.00029852,2]
[311682205,1705326646787,-150.0,0.00029855,2]
[311682206,1705326646796,-150.0,0.00029856,2]
[311682207,1705326646807,-150.0,0.00029858,2]
[311682208,1705326646816,-1500.0,0.00029863,2]
[311682209,1705326646825,-150.0,0.00029865,2]
[311682210,1705326646834,-150.0,0.00029867,2]
[311682211,1705326646843,-150.0,0.00029867,2]
[311682212,1705326646852,-150.0,0.00029868,2]
[311682213,1705326646862,-150.0,0.00029875,2]
[311682214,1705326646871,-150.0,0.00029878,2]
[311682215,1705326646880,-4904.26526178,0.00029885,2]
[311682216,1705326646889,-9679.50827669,0.00029885,2]
[311682217,1705326646898,-300.0,0.00029897,2]
[311682218,1705326646908,-300.0,0.00029897,2]
[311682219,1705326646917,-155.0,0.00029898,2]
[311682220,1705326646927,-2024.60916251,0.00029898,2]
[311682221,1705326646938,-598.11585691,0.00029898,2]
[311682222,1705326646947,-344.22569438,0.00029898,2]
[311682223,1705326646956,-209.38155424,0.00029898,2]
[311682224,1705326646965,-382.5072126,0.00029898,2]
[311682225,1705326646974,-963.61501123,0.00029898,2]
[311682226,1705326646983,-156.19133947,0.00029898,2]
[311682227,1705326646993,-417.52146026,0.00029898,2]
[311682228,1705326647002,-401.57543249,0.00029898,2]
[311682229,1705326647011,-164.2384182,0.00029898,2]
[311682230,1705326647021,-296.33063111,0.00029898,2]
[311682231,1705326647030,-155.0,0.00029898,2]
[311682232,1705326647039,-155.0,0.00029898,2]
[311682233,1705326647048,-361.16719797,0.00029898,2]
[311682234,1705326647057,-155.35196203,0.00029898,2]
[311682235,1705326647067,-155.24296838,0.00029898,2]
[311682236,1705326647077,-476.83191993,0.00029898,2]
[311682237,1705326647087,-155.73624311,0.00029898,2]
[311682238,1705326647096,-155.81849398,0.00029898,2]
[311682239,1705326647105,-243.67039735,0.00029898,2]
[311682240,1705326647115,-155.0,0.00029898,2]
[311682241,1705326647124,-155.38567074,0.00029899,2]
[311682242,1705326647135,-291.52834849,0.00029899,2]
[311682243,1705326647145,-230.2259009,0.00029899,2]
[311682244,1705326647155,-5000.0,0.000299,2]
[311682245,1705326647166,-209.0,0.000299,2]
[311682246,1705326647176,-2000.0,0.000299,3]
[311682247,1705326647187,-728.19,0.000299,2]
[311682248,1705326647197,-1110.0,0.000299,5]
[311682249,1705326647208,-3200.0,0.000299,10]
[311682250,1705326647219,-344.0,0.000299,2]
[311682251,1705326647230,-200000.0,0.000299,2]
[311682252,1705326647240,-150.0,0.00029916,2]
[311682253,1705326647250,-150.0,0.0002993,2]
[311682254,1705326647259,-150.0,0.00029936,2]
[311682255,1705326647269,-150.0,0.00029944,2]
[311682256,1705326647279,-150.0,0.00029948,2]
[311682257,1705326647289,-150.0,0.00029949,2]
[311682258,1705326647299,-150.0,0.0002995,2]
[311682259,1705326647308,-1500.0,0.00029958,2]
[311682260,1705326647317,-200.0,0.00029962,2]
[311682261,1705326647327,-500.0,0.00029962,2]
[311682262,1705326647337,-500.0,0.00029962,2]
[311682263,1705326647346,-500.0,0.00029962,2]
[311682264,1705326647355,-500.0,0.00029962,2]
[311682265,1705326647365,-500.0,0.00029962,2]
[311682266,1705326647375,-500.0,0.00029962,2]
[311682267,1705326647384,-500.0,0.00029962,2]
[311682268,1705326647393,-500.0,0.00029962,2]
[311682269,1705326647403,-500.0,0.00029962,2]
[311682270,1705326647423,-500.0,0.00029962,2]
[311682271,1705326647434,-500.0,0.00029962,2]
[311682272,1705326647444,-500.0,0.00029962,2]
[311682273,1705326647453,-500.0,0.00029962,2]
[311682274,1705326647463,-500.0,0.00029962,2]
[311682275,1705326647473,-500.0,0.00029962,2]
[311682276,1705326647483,-500.0,0.00029962,2]
[311682277,1705326647493,-500.0,0.00029962,2]
[311682278,1705326647502,-500.0,0.00029962,2]
[311682279,1705326647512,-500.0,0.00029962,2]
[311682280,1705326647522,-500.0,0.00029962,2]
[311682281,1705326647532,-500.0,0.00029962,2]
[311682282,1705326647541,-500.0,0.00029962,2]
[311682283,1705326647550,-500.0,0.00029962,2]
[311682284,1705326647560,-500.0,0.00029962,2]
[311682285,1705326647569,-500.0,0.00029962,2]
[311682286,1705326647578,-500.0,0.00029962,2]
[311682287,1705326647588,-500.0,0.00029962,2]
[311682288,1705326647597,-500.0,0.00029962,2]
[311682289,1705326647607,-500.0,0.00029962,2]
[311682290,1705326647616,-500.0,0.00029962,2]
[311682291,1705326647626,-500.0,0.00029962,2]
[311682292,1705326647635,-500.0,0.00029962,2]
[311682293,1705326647644,-500.0,0.00029962,2]
[311682294,1705326647654,-500.0,0.00029962,2]
[311682295,1705326647663,-500.0,0.00029962,2]
[311682296,1705326647673,-500.0,0.00029962,2]
[311682297,1705326647682,-500.0,0.00029962,2]
[311682298,1705326647691,-500.0,0.00029962,2]
[311682299,1705326647701,-500.0,0.00029962,2]
[311682300,1705326647710,-500.0,0.00029962,2]
[311682301,1705326647720,-312.64251927,0.00029962,2]
[311682302,1705326647730,-1500.0,0.00029962,2]
[311682303,1705326647741,-150.0,0.00029964,2]
[311682304,1705326647751,-150.0,0.00029965,2]
[311682305,1705326647763,-150.0,0.00029966,2]
[311682306,1705326647775,-800.0,0.00029973,2]
[311682307,1705326647786,-1430.432296,0.00029973,2]
[311682308,1705326647796,-1430.432296,0.00029974,2]
[311682309,1705326647806,-1430.432296,0.00029975,2]
[311682310,1705326647816,-1430.432296,0.00029976,2]
[311682311,1705326647826,-1430.432296,0.00029977,2]
[311682312,1705326647836,-1430.432296,0.00029978,2]
[311682313,1705326647845,-1430.432296,0.00029979,2]
[311682314,1705326647855,-651.8520048,0.0002998,3]
[311682315,1705326647864,-2308.69874153,0.0002998,14]
[311682316,1705326647874,-1430.432296,0.00029981,2]
[311682317,1705326647883,-150.0,0.00029981,2]
[311682318,1705326647893,-150.0,0.00029981,2]
[311682319,1705326647903,-1430.432296,0.00029982,2]
[311682320,1705326647916,-1430.432296,0.00029983,2]
[311682321,1705326647950,-1430.432296,0.00029984,2]
[311682322,1705326647960,-1430.432296,0.00029985,2]
[311682323,1705326647969,-1430.432296,0.00029986,2]
[311682324,1705326647979,-1430.432296,0.00029987,2]
[311682325,1705326647988,-1430.432296,0.00029989,2]
[311682326,1705326647998,-1430.432296,0.0002999,2]
[311682327,1705326648008,-1430.432296,0.00029991,2]
[311682328,1705326648017,-1430.432296,0.00029992,2]
[311682329,1705326648026,-1430.432296,0.00029993,2]
[311682330,1705326648036,-150.0,0.00029993,2]
[311682331,1705326648045,-150.0,0.00029993,2]
[311682332,1705326648055,-1430.432296,0.00029994,2]
[311682333,1705326648066,-1430.432296,0.00029995,2]
[311682334,1705326648075,-1430.432296,0.00029997,2]
[311682335,1705326648085,-150.0,0.00029997,2]
[311682336,1705326648095,-3945.26243076,0.00029997,2]
[311682337,1705326648105,-1430.432296,0.00029998,2]
[311682338,1705326648114,-613.9047125,0.00029998,2]
[311682339,1705326648123,-24889.3031355,0.00029998,2]
[311682340,1705326648133,-151.0,0.00029999,7]
[311682341,1705326648142,-898.025245,0.00029999,7]
[311682342,1705326648152,-898.025245,0.00029999,7]
[311682343,1705326648162,-152.077337,0.00029999,7]
[311682344,1705326648172,-152.077337,0.00029999,7]
[311682345,1705326648181,-192.105174,0.00029999,7]
[311682346,1705326648192,-192.105174,0.00029999,7]
[311682347,1705326648201,-394.216124,0.00029999,7]
[311682348,1705326648211,-394.216124,0.00029999,7]
[311682349,1705326648221,-204.960158,0.00029999,7]
[311682350,1705326648231,-204.960158,0.00029999,7]
[311682351,1705326648241,-150.01,0.00029999,2]
[311682352,1705326648253,-3294.38484961,0.00029999,2]
[311682353,1705326648263,-1430.432296,0.00029999,2]
[311682354,1705326648272,-500.0,0.00029999,2]
[311682355,1705326648282,-500.0,0.00029999,2]
[311682356,1705326648292,-165.33754924,0.00029999,2]
[311682357,1705326648301,-500.0,0.00029999,2]
[311682358,1705326648311,-500.0,0.00029999,2]
[311682359,1705326648321,-500.0,0.00029999,2]
[311682360,1705326648330,-500.0,0.00029999,2]
[311682361,1705326648340,-500.0,0.00029999,2]
[311682362,1705326648349,-500.0,0.00029999,2]
[311682363,1705326648358,-500.0,0.00029999,2]
[311682364,1705326648368,-500.0,0.00029999,2]
[311682365,1705326648378,-500.0,0.00029999,2]
[311682366,1705326648387,-500.0,0.00029999,2]
[311682367,1705326648397,-500.0,0.00029999,2]
[311682368,1705326648406,-500.0,0.00029999,2]
[311682369,1705326648416,-500.0,0.00029999,2]
[311682370,1705326648426,-500.0,0.00029999,2]
[311682371,1705326648436,-500.0,0.00029999,2]
[311682372,1705326648451,-500.0,0.00029999,2]
[311682373,1705326648460,-500.0,0.00029999,2]
[311682374,1705326648470,-500.0,0.00029999,2]
[311682375,1705326648479,-500.0,0.00029999,2]
[311682376,1705326648488,-322.02033375,0.00029999,2]
[311682377,1705326648497,-500.0,0.00029999,2]
[311682378,1705326648506,-500.0,0.00029999,2]
[311682379,1705326648515,-500.0,0.00029999,2]
[311682380,1705326648525,-500.0,0.00029999,2]
[311682381,1705326648534,-433.03869672,0.00029999,2]
[311682382,1705326648543,-500.0,0.00029999,2]
[311682383,1705326648553,-500.0,0.00029999,2]
[311682384,1705326648564,-500.0,0.00029999,2]
[311682385,1705326648573,-500.0,0.00029999,2]
[311682386,1705326648583,-500.0,0.00029999,2]
[311682387,1705326648592,-500.0,0.00029999,2]
[311682388,1705326648602,-500.0,0.00029999,2]
[311682389,1705326648612,-500.0,0.00029999,2]
[311682390,1705326648622,-500.0,0.00029999,2]
[311682391,1705326648631,-500.0,0.00029999,2]
[311682392,1705326648641,-611.38642659,0.00029999,2]
[311682393,1705326648651,-500.0,0.00029999,2]
[311682394,1705326648662,-500.0,0.00029999,2]
[311682395,1705326648671,-500.0,0.00029999,2]
[311682396,1705326648681,-500.0,0.00029999,2]
[311682397,1705326648691,-203.72849929,0.00029999,2]
[311682398,1705326648699,-500.0,0.00029999,2]
[311682399,1705326648709,-500.0,0.00029999,2]
[311682400,1705326648718,-500.0,0.00029999,2]
[311682401,1705326648727,-500.0,0.00029999,2]
[311682402,1705326648737,-500.0,0.00029999,2]
[311682403,1705326648746,-500.0,0.00029999,2]
[311682404,1705326648755,-500.0,0.00029999,2]
[311682405,1705326648765,-500.0,0.00029999,2]
[311682406,1705326648774,-500.0,0.00029999,2]
[311682407,1705326648783,-500.0,0.00029999,2]
[311682408,1705326648793,-500.0,0.00029999,2]
[311682409,1705326648802,-500.0,0.00029999,2]
[311682410,1705326648813,-500.0,0.00029999,2]
[311682411,1705326648823,-500.0,0.00029999,2]
[311682412,1705326648833,-1000.0,0.00029999,5]
[311682413,1705326648844,-1000.0,0.00029999,5]
[311682414,1705326648853,-826.31972725,0.00029999,5]
[311682415,1705326648863,-1081.92,0.00029999,30]
[311682416,1705326648872,-1081.92,0.00029999,30]
[311682417,1705326648882,-1081.92,0.00029999,30]
[311682418,1705326648891,-1081.92,0.00029999,30]
[311682419,1705326648904,-1081.92,0.00029999,30]
[311682420,1705326648914,-1081.92,0.00029999,30]
[311682421,1705326648923,-1081.92,0.00029999,30]
[311682422,1705326648933,-1081.92,0.00029999,30]
[311682423,1705326648944,-1081.92,0.00029999,30]
[311682424,1705326648955,-1081.92,0.00029999,30]
[311682425,1705326648964,-1081.92,0.00029999,30]
[311682426,1705326648974,-1081.92,0.00029999,30]
[311682427,1705326648983,-1081.92,0.00029999,30]
[311682428,1705326648993,-300.0,0.00029999,2]
[311682429,1705326649002,-161.16567161,0.00029999,2]
[311682430,1705326649010,-100000.0,0.0003,2]
[311682431,1705326649019,-151.0,0.0003,7]
[311682432,1705326649029,-151.0,0.0003,7]
[311682433,1705326649038,-151.0,0.0003,7]
[311682434,1705326649048,-227.247028,0.0003,7]
[311682435,1705326649058,-151.0,0.0003,7]
[311682436,1705326649068,-238.980843,0.0003,7]
[311682437,1705326649078,-151.0,0.0003,7]
[311682438,1705326649087,-151.0,0.0003,7]
[311682439,1705326649097,-482814.06475125,0.0003,3]
[311682440,1705326649106,-250.0,0.0003,15]
[311682441,1705326649118,-240.0,0.0003,7]
[311682442,1705326649128,-235.0,0.0003,30]
[311682443,1705326649139,-230081.83347582,0.0003,2]
[311682444,1705326649150,-268260.58870508,0.0003,2]
[311682445,1705326649160,-156.24545659,0.0003,4]
[311682446,1705326649170,-815.17255794,0.0003,4]
[311682447,1705326649179,-23000.0,0.0003,4]
[311682448,1705326649191,-8826.98630773,0.0003,4]
[311682449,1705326649200,-3339.9030942,0.0003,4]
[311682450,1705326649209,-308636.97302582,0.0003,4]
[311682451,1705326649219,-677.74118479,0.0003,4]
[311682452,1705326649228,-155.96386997,0.0003,4]
[311682453,1705326649238,-167.78462191,0.0003,2]
[311682454,1705326649247,-1574.60468839,0.0003,2]
[311682455,1705326649257,-2550.6211898,0.0003,4]
[311682456,1705326649266,-463.0140657,0.0003,4]
[311682457,1705326649275,-446.8520429,0.0003,4]
[311682458,1705326649286,-706.89751885,0.0003,2]
[311682459,1705326649296,-432.87852112,0.0003,4]
[311682460,1705326649305,-2500.0,0.0003,2]
[311682461,1705326649315,-791.23388023,0.0003,4]
[311682462,1705326649324,-9631.27866074,0.0003,2]
[311682463,1705326649334,-6855.94476981,0.0003,4]
[311682464,1705326649343,-351.24332602,0.0003,2]
[311682465,1705326649353,-904.77027784,0.0003,4]
[311682466,1705326649363,-72867.95281422,0.0003,4]
[311682467,1705326649373,-280.0,0.0003,4]
[311682468,1705326649382,-242.058528,0.0003,7]
[311682469,1705326649393,-242.058528,0.0003,7]
[311682470,1705326649402,-242.058528,0.0003,7]
[311682471,1705326649412,-242.058528,0.0003,7]
[311682472,1705326649421,-242.058528,0.0003,7]